bitfinex/quotes_BTCUSD_20250719
["timestamp","ask_amount","ask_price","bid_price","bid_amount"]
[1752886964528,1.77000161,117810.0,117800.0,0.01500001]
[1752886964772,1.54311378,117810.0,117800.0,0.01500001]
[1752886965180,1.47611378,117810.0,117800.0,0.01500001]
[1752886965387,1.54311378,117810.0,117800.0,0.01500001]
[1752886965593,1.77000161,117810.0,117800.0,0.01500001]
[1752886965758,1.25129595,117810.0,117800.0,1e-08]
[1752886965970,1.77207161,117810.0,117800.0,1e-08]
[1752886966544,1.54518378,117810.0,117800.0,1e-08]
[1752886966997,1.78817161,117810.0,117800.0,1e-08]
[1752886967772,1.80437161,117810.0,117800.0,1e-08]
[1752886969024,1.80479523,117810.0,117800.0,1e-08]
[1752886971053,1.80476945,117810.0,117800.0,1e-08]
[1752886972339,1.77868404,117810.0,117800.0,1e-08]
[1752886972987,1.77864104,117810.0,117800.0,1e-08]
[1752886973971,1.69926862,117810.0,117800.0,1e-08]
[1752886975470,1.24509512,117810.0,117800.0,1e-08]
[1752886975693,1.69926862,117810.0,117800.0,1e-08]
[1752886977413,1.19926862,117810.0,117800.0,1e-08]
[1752886977639,1.19934862,117810.0,117800.0,1e-08]
[1752886977849,1.28510824,117810.0,117800.0,1e-08]
[1752886978773,1.31335182,117810.0,117800.0,1e-08]
[1752886979411,1.33862426,117810.0,117800.0,1e-08]
[1752886979863,1.38143122,117810.0,117800.0,1e-08]
[1752886980083,1.35318764,117810.0,117800.0,1e-08]
[1752886980307,0.86017772,117810.0,117800.0,1e-08]
[1752886980523,1.32488153,117810.0,117800.0,1e-08]
[1752886981614,1.32492153,117810.0,117800.0,1e-08]
[1752886981831,1.35316511,117810.0,117800.0,1e-08]
[1752886984814,0.89899161,117810.0,117800.0,1e-08]
[1752886985041,1.35316511,117810.0,117800.0,1e-08]
[1752886989308,0.89899161,117810.0,117800.0,1e-08]
[1752886989513,1.23916191,117810.0,117800.0,1e-08]
[1752886989725,1.22296191,117810.0,117800.0,1e-08]
[1752886989945,1.20842106,117810.0,117800.0,1e-08]
[1752886990288,1.19232106,117810.0,117800.0,0.01570001]
[1752886990508,0.73814756,117810.0,117800.0,0.01570001]
[1752886990648,1.19232106,117810.0,117800.0,0.01570001]
[1752886990855,1.25391456,117810.0,117800.0,0.01570001]
[1752886991059,0.79974106,117810.0,117800.0,0.01570001]
[1752886991275,1.25388196,117810.0,117800.0,0.01570001]
[1752886992064,1.25388196,117810.0,117800.0,1e-08]
[1752886992977,1.2539,117810.0,117800.0,1e-08]
[1752886994069,1.2694,117810.0,117800.0,1e-08]
[1752886994537,1.2539,117810.0,117800.0,1e-08]
[1752886995238,1.2694,117810.0,117800.0,1e-08]
[1752886995669,1.2854,117810.0,117800.0,1e-08]
[1752886996122,1.28536,117810.0,117800.0,1e-08]
[1752886996600,1.26936,117810.0,117800.0,1e-08]
[1752886998398,1.28466,117810.0,117800.0,1e-08]
[1752886999321,1.26936,117810.0,117800.0,1e-08]
[1752886999741,1.28466,117810.0,117800.0,1e-08]
[1752886999952,1.21762,117810.0,117800.0,1e-08]
[1752887000174,1.28458,117810.0,117800.0,1e-08]
[1752887000621,1.21762,117810.0,117800.0,1e-08]
[1752887000825,1.28458,117810.0,117800.0,1e-08]
[1752887001770,1.28454,117810.0,117800.0,1e-08]
[1752887003967,1.26924,117810.0,117800.0,1e-08]
[1752887007509,1.26916,117810.0,117800.0,1e-08]
[1752887010832,1.20232,117810.0,117800.0,1e-08]
[1752887011044,1.26916,117810.0,117800.0,1e-08]
[1752887011721,1.26912,117810.0,117800.0,1e-08]
[1752887013153,1.20755106,117810.0,117800.0,1e-08]
[1752887013536,1.19205106,117810.0,117800.0,1e-08]
[1752887014197,0.73786756,117810.0,117800.0,1e-08]
[1752887014416,1.19205106,117810.0,117800.0,1e-08]
[1752887015468,0.89815931,117810.0,117800.0,1e-08]
[1752887015683,0.39273756,117810.0,117800.0,0.03110001]
[1752887015896,0.32597756,117810.0,117800.0,0.25819176]
[1752887016081,0.73277756,117810.0,117800.0,0.03110001]
[1752887016943,0.95986931,117810.0,117800.0,0.03110001]
[1752887017306,0.95994931,117810.0,117800.0,0.03110001]
[1752887017726,0.95694931,117810.0,117800.0,0.03110001]
[1752887018689,0.72985756,117810.0,117800.0,0.03110001]
[1752887024603,0.95684689,117810.0,117800.0,0.03110001]
[1752887024843,0.96683744,117810.0,117800.0,0.03110001]
[1752887025070,1.21417677,117810.0,117800.0,1e-08]
[1752887026141,0.76019811,117810.0,117800.0,1e-08]
[1752887026347,1.21417677,117810.0,117800.0,1e-08]
[1752887026757,0.98718744,117810.0,117800.0,1e-08]
[1752887028442,0.76019811,117810.0,117800.0,1e-08]
[1752887028654,0.98718744,117810.0,117800.0,1e-08]
[1752887029764,0.97719689,117810.0,117800.0,1e-08]
[1752887030364,0.75020756,117810.0,117800.0,1e-08]
[1752887030569,0.97719689,117810.0,117800.0,1e-08]
[1752887032738,1.20418622,117810.0,117800.0,1e-08]
[1752887034184,0.75020756,117810.0,117800.0,1e-08]
[1752887034398,0.83596718,117810.0,117800.0,1e-08]
[1752887034637,1.28994584,117810.0,117800.0,1e-08]
[1752887035168,1.30564584,117810.0,117800.0,1e-08]
[1752887037267,1.2803734,117810.0,117800.0,1e-08]
[1752887038101,1.2823734,117810.0,117800.0,1e-08]
[1752887039143,1.29691425,117810.0,117800.0,1e-08]
[1752887040008,1.35342394,117810.0,117800.0,1e-08]
[1752887040455,1.29691425,117810.0,117800.0,1e-08]
[1752887041128,1.32248924,117810.0,117800.0,1e-08]
[1752887041790,1.35073282,117810.0,117800.0,1e-08]
[1752887042647,1.32248924,117810.0,117800.0,1e-08]
[1752887044410,0.86851058,117810.0,117800.0,1e-08]
[1752887044630,1.32248924,117810.0,117800.0,1e-08]
[1752887045172,0.86851058,117810.0,117800.0,1e-08]
[1752887045398,1.32248924,117810.0,117800.0,1e-08]
[1752887046540,1.29691425,117810.0,117800.0,1e-08]
[1752887050660,1.32192289,117810.0,117800.0,1e-08]
[1752887054116,0.86794423,117810.0,117800.0,1e-08]
[1752887054329,1.32192289,117810.0,117800.0,1e-08]
[1752887054758,1.31992289,117810.0,117800.0,1e-08]
[1752887055177,1.32592289,117810.0,117800.0,1e-08]
[1752887058221,1.25904289,117810.0,117800.0,1e-08]
[1752887058421,1.19538242,117810.0,117800.0,1e-08]
[1752887058887,1.21098242,117810.0,117800.0,1e-08]
[1752887059550,1.22728242,117810.0,117800.0,1e-08]
[1752887060881,1.29833296,117810.0,117800.0,1e-08]
[1752887061133,1.38409258,117810.0,117800.0,1e-08]
[1752887061816,1.355849,117810.0,117800.0,1e-08]
[1752887062007,1.32758289,117810.0,117800.0,1e-08]
[1752887064003,1.35582647,117810.0,117800.0,1e-08]
[1752887064222,1.32758289,117810.0,117800.0,1e-08]
[1752887067103,0.87360423,117810.0,117800.0,1e-08]
[1752887067317,1.32758289,117810.0,117800.0,1e-08]
[1752887068996,1.57087746,117810.0,117800.0,1e-08]
[1752887069166,1.59914357,117810.0,117800.0,1e-08]
[1752887071315,1.62738715,117810.0,117800.0,1e-08]
[1752887072389,1.77738715,117810.0,117800.0,1e-08]
[1752887072605,1.24012227,117780.0,117770.0,1e-08]
[1752887072806,0.51831351,117770.0,117760.0,0.00210069]
[1752887073009,1.12635303,117770.0,117760.0,0.00225051]
[1752887073220,1.12946303,117770.0,117760.0,0.00225051]
[1752887074033,0.63261789,117760.0,117750.0,0.00223]
[1752887074299,1.35864279,117760.0,117750.0,1e-08]
[1752887074501,1.38974279,117760.0,117750.0,1e-08]
[1752887074816,1.39843585,117760.0,117750.0,1e-08]
[1752887075038,1.17161933,117760.0,117750.0,1e-08]
[1752887075240,1.25737893,117760.0,117750.0,1e-08]
[1752887075664,0.80276159,117760.0,117750.0,1e-08]
[1752887075861,0.18685186,117740.0,117730.0,0.0289]
[1752887076187,0.34076214,117740.0,117730.0,0.0289]
[1752887076847,0.56807081,117740.0,117730.0,0.0289]
[1752887076994,0.65383043,117740.0,117730.0,0.0289]
[1752887077237,0.34076214,117740.0,117730.0,0.0289]
[1752887077535,0.56807081,117740.0,117730.0,0.0289]
[1752887077969,0.59429473,117740.0,117730.0,0.0329]
[1752887078170,0.36698606,117740.0,117730.0,0.0329]
[1752887078621,0.59429473,117740.0,117730.0,0.0329]
[1752887078780,0.36698606,117740.0,117730.0,0.0329]
[1752887078996,0.61186703,117740.0,117730.0,0.0329]
[1752887079459,0.38455836,117740.0,117730.0,0.0329]
[1752887079701,0.61186703,117740.0,117730.0,0.0329]
[1752887079930,0.36698606,117740.0,117730.0,0.0329]
[1752887080144,0.29858606,117740.0,117730.0,0.0329]
[1752887081191,0.52589473,117740.0,117730.0,0.0329]
[1752887081394,0.29858606,117740.0,117730.0,0.0329]
[1752887082646,0.29858606,117740.0,117730.0,0.03066647]
[1752887084170,0.21307578,117740.0,117730.0,0.25797514]
[1752887084635,0.21307578,117740.0,117730.0,0.25574161]
[1752887085133,0.21307578,117740.0,117730.0,0.02843294]
[1752887085372,0.18785186,117740.0,117730.0,0.02843294]
[1752887086731,0.18785186,117740.0,117730.0,0.25350808]
[1752887087162,0.18785186,117740.0,117730.0,0.02619941]
[1752887087429,0.18785186,117740.0,117730.0,0.25350808]
[1752887087646,0.18785186,117740.0,117730.0,0.02619941]
[1752887087861,0.2093286,117740.0,117730.0,0.02619941]
[1752887088293,0.18785186,117740.0,117730.0,0.02289238]
[1752887088740,0.18785186,117740.0,117730.0,0.25020105]
[1752887090287,0.18785186,117740.0,117730.0,0.0219176]
[1752887090731,0.18700254,117740.0,117730.0,0.0219176]
[1752887091168,0.18700254,117740.0,117730.0,0.02090919]
[1752887092063,0.18700254,117740.0,117730.0,0.0202]
[1752887092757,0.50293149,117740.0,117730.0,0.004]
[1752887092963,0.51913149,117740.0,117730.0,0.004]
[1752887093190,0.51837409,117730.0,117720.0,0.01491649]
[1752887093396,0.51837409,117730.0,117720.0,0.24222516]
[1752887094220,0.51837409,117730.0,117720.0,0.24292516]
[1752887094625,0.51937409,117730.0,117720.0,0.24792516]
[1752887094826,0.51937409,117730.0,117720.0,0.02061649]
[1752887095127,0.51937409,117730.0,117720.0,0.24792516]
[1752887095357,0.51937409,117730.0,117720.0,0.02061649]
[1752887095563,0.51937409,117730.0,117720.0,0.24792516]
[1752887096539,0.51937409,117730.0,117720.0,0.02061649]
[1752887096764,0.51937409,117730.0,117720.0,0.24792516]
[1752887097230,0.51937409,117730.0,117720.0,0.02061649]
[1752887097460,0.51937409,117730.0,117720.0,0.24792516]
[1752887097679,0.34949386,117730.0,117720.0,0.44330329]
[1752887097940,0.35798765,117730.0,117720.0,0.45179751]
[1752887098158,0.37497559,117730.0,117720.0,0.21599462]
[1752887098386,0.37497559,117730.0,117720.0,0.44330322]
[1752887098592,0.37497559,117730.0,117720.0,0.45179744]
[1752887098808,0.54485582,117730.0,117720.0,0.43480892]
[1752887099029,0.37497559,117730.0,117720.0,0.44330314]
[1752887099249,0.36648158,117730.0,117720.0,0.44330314]
[1752887099906,0.35798765,117730.0,117720.0,0.44330314]
[1752887100116,0.35798693,117730.0,117720.0,0.44330314]
[1752887100333,0.37497451,117730.0,117720.0,0.44330314]
[1752887100559,0.37497451,117730.0,117720.0,0.21599447]
[1752887100808,0.53636182,117730.0,117720.0,0.19900581]
[1752887101018,0.5278681,117730.0,117720.0,0.42631448]
[1752887101241,0.5278681,117730.0,117720.0,0.43480906]
[1752887101454,0.5278681,117730.0,117720.0,0.44330357]
[1752887101900,0.5278681,117730.0,117720.0,0.45179801]
[1752887102559,0.5278681,117730.0,117720.0,0.46029238]
[1752887102995,0.5278681,117730.0,117720.0,0.45179801]
[1752887103235,0.58914763,117730.0,117720.0,0.24792516]
[1752887103472,0.51088023,117730.0,117720.0,0.24792516]
[1752887103702,0.51088023,117730.0,117720.0,0.43480899]
[1752887104168,0.51088023,117730.0,117720.0,0.19900581]
[1752887104388,0.51088023,117730.0,117720.0,0.42631448]
[1752887104613,0.51088023,117730.0,117720.0,0.42561448]
[1752887105775,0.51088023,117730.0,117720.0,0.43410899]
[1752887106223,0.51088023,117730.0,117720.0,0.44260343]
[1752887106910,0.51088023,117730.0,117720.0,0.43410899]
[1752887107139,0.51088023,117730.0,117720.0,0.42561448]
[1752887107378,0.51088023,117730.0,117720.0,0.4339118]
[1752887108006,0.51088023,117730.0,117720.0,0.41692256]
[1752887108207,0.51088023,117730.0,117720.0,0.2470279]
[1752887108390,0.51088023,117730.0,117720.0,0.25552263]
[1752887108638,0.51937424,117730.0,117720.0,0.42541729]
[1752887108860,0.51937424,117730.0,117720.0,0.43391187]
[1752887110140,0.52786803,117730.0,117720.0,0.44240631]
[1752887110391,0.52786803,117730.0,117720.0,0.44240638]
[1752887110797,0.52786803,117730.0,117720.0,0.45090075]
[1752887111218,0.52786803,117730.0,117720.0,0.21509771]
[1752887111448,0.52786803,117730.0,117720.0,0.44240638]
[1752887111650,0.52786803,117730.0,117720.0,0.45090082]
[1752887111859,0.52786803,117730.0,117720.0,0.44240638]
[1752887112070,0.59355301,117730.0,117720.0,0.19810862]
[1752887112252,0.51088023,117730.0,117720.0,0.19810862]
[1752887112424,0.51088023,117730.0,117720.0,0.44240638]
[1752887112831,0.51088023,117730.0,117720.0,0.45090082]
[1752887113905,0.001,117730.0,117720.0,0.78745484]
[1752887114782,0.001,117730.0,117720.0,0.3328375]
[1752887115004,0.001,117730.0,117720.0,0.78745484]
[1752887115399,0.02547827,117740.0,117730.0,0.21086138]
[1752887115537,0.02547827,117740.0,117730.0,0.50771005]
[1752887115989,0.01698462,117750.0,117740.0,0.18685186]
[1752887116210,0.36547718,117750.0,117740.0,0.43815331]
[1752887116413,0.36547718,117750.0,117740.0,0.20235186]
[1752887116614,0.35698462,117750.0,117740.0,0.43815331]
[1752887116821,0.36547654,117750.0,117740.0,0.43815331]
[1752887117039,0.35698419,117750.0,117740.0,0.43815331]
[1752887117238,0.36547654,117750.0,117740.0,0.43815331]
[1752887117489,0.36547647,117750.0,117740.0,0.43815331]
[1752887117705,0.37396939,117750.0,117740.0,0.42966053]
[1752887118074,0.37396939,117750.0,117740.0,0.43815338]
[1752887118250,0.37396939,117750.0,117740.0,0.42966053]
[1752887118456,0.53532857,117750.0,117740.0,0.42966068]
[1752887118737,0.53632857,117750.0,117740.0,0.42966068]
[1752887118962,0.53532857,117750.0,117740.0,0.42966068]
[1752887119185,0.52683629,117750.0,117740.0,0.42116761]
[1752887119468,0.50985138,117750.0,117740.0,0.22830867]
[1752887119659,0.52565138,117750.0,117740.0,0.22830867]
[1752887120090,0.52565138,117750.0,117740.0,0.23680196]
[1752887120502,0.52565138,117750.0,117740.0,0.22830867]
[1752887120971,0.52565138,117750.0,117740.0,0.001]
[1752887121198,0.52887138,117750.0,117740.0,0.22830867]
[1752887121400,0.52887138,117750.0,117740.0,0.29706867]
[1752887121817,0.52887138,117750.0,117740.0,0.06976]
[1752887122250,0.52887138,117750.0,117740.0,0.29706867]
[1752887123997,0.52887138,117750.0,117740.0,0.30556196]
[1752887124433,0.52887138,117750.0,117740.0,0.3140551]
[1752887124635,0.52887138,117750.0,117740.0,0.4839209]
[1752887124864,0.53736387,117750.0,117740.0,0.50090697]
[1752887125079,0.54263615,117750.0,117740.0,0.50939989]
[1752887125832,0.35698477,117750.0,117740.0,0.52469909]
[1752887126041,0.36547733,117750.0,117740.0,0.52469909]
[1752887126248,0.35698477,117750.0,117740.0,0.52469909]
[1752887126679,0.0280095,117760.0,117750.0,0.18683629]
[1752887126894,0.37448365,117760.0,117750.0,0.67373789]
[1752887127134,0.0090095,117760.0,117750.0,0.67373789]
[1752887127332,0.01750069,117760.0,117750.0,0.67373789]
[1752887127548,0.03448351,117760.0,117750.0,0.67373789]
[1752887127757,0.03548351,117760.0,117750.0,0.67373789]
[1752887127958,0.02699203,117760.0,117750.0,0.67373789]
[1752887128166,0.01750077,117760.0,117750.0,0.67373789]
[1752887128622,0.01750077,117760.0,117750.0,0.67473789]
[1752887128817,0.03448366,117760.0,117750.0,0.22012055]
[1752887129025,0.03448366,117760.0,117750.0,0.67473789]
[1752887129465,0.03448366,117760.0,117750.0,0.44742922]
[1752887129599,0.03448359,117760.0,117750.0,0.44742922]
[1752887129803,0.0090095,117760.0,117750.0,0.44742922]
[1752887130015,0.85511975,117760.0,117750.0,0.001]
[1752887130237,0.99783193,117760.0,117750.0,0.001]
[1752887130450,0.94063003,117760.0,117750.0,0.001]
[1752887131006,0.19465901,117740.0,117730.0,0.22730867]
[1752887131236,0.00849408,117720.0,117710.0,0.20399628]
[1752887131501,0.02548354,117720.0,117710.0,0.27240729]
[1752887131716,0.2031839,117720.0,117710.0,0.56863611]
[1752887131952,0.2063839,117720.0,117710.0,0.56863611]
[1752887132208,0.19788932,117720.0,117710.0,0.08551028]
[1752887132427,0.20088932,117720.0,117710.0,0.57263873]
[1752887132634,0.20138699,117720.0,117710.0,0.57263873]
[1752887133072,0.19938699,117720.0,117710.0,0.58113396]
[1752887133908,0.19938699,117720.0,117710.0,0.58962912]
[1752887134575,0.03478677,117720.0,117710.0,0.59812414]
[1752887134798,0.01848677,117720.0,117710.0,0.59812414]
[1752887135039,0.00149767,117720.0,117710.0,0.5981237]
[1752887135259,0.00149767,117720.0,117710.0,0.84063237]
[1752887135482,0.00149767,117720.0,117710.0,0.84133237]
[1752887135924,0.00999189,117720.0,117710.0,0.38601503]
[1752887136167,0.00999189,117720.0,117710.0,0.6133237]
[1752887136394,0.01848626,117720.0,117710.0,0.6133237]
[1752887136588,0.00149767,117720.0,117710.0,0.6133237]
[1752887136741,0.01848612,117720.0,117710.0,0.6133237]
[1752887136943,0.00999182,117720.0,117710.0,0.6133237]
[1752887137547,0.01848612,117720.0,117710.0,0.6133237]
[1752887137764,0.01848604,117720.0,117710.0,0.6133237]
[1752887137942,0.00999182,117720.0,117710.0,0.6133237]
[1752887138564,0.00149767,117720.0,117710.0,0.6133237]
[1752887138971,0.00999189,117720.0,117710.0,0.6133237]
[1752887139190,0.02698063,117720.0,117710.0,0.6133237]
[1752887140049,0.01848619,117720.0,117710.0,0.6133237]
[1752887140275,0.02698063,117720.0,117710.0,0.6133237]
[1752887140708,0.02698063,117720.0,117710.0,0.37081503]
[1752887140935,0.05047521,117720.0,117710.0,0.5981237]
[1752887141177,0.05896987,117720.0,117710.0,0.5981237]
[1752887141631,0.06217038,117720.0,117710.0,0.58962876]
[1752887142092,0.05367608,117720.0,117710.0,0.58962876]
[1752887142998,0.05367608,117720.0,117710.0,0.52070876]
[1752887143243,0.22378172,117720.0,117710.0,0.07288]
[1752887143742,0.22378172,117720.0,117710.0,0.004]
[1752887143989,0.22378172,117720.0,117710.0,0.07292]
[1752887144231,0.22278172,117720.0,117710.0,0.06892]
[1752887144686,0.22278172,117720.0,117710.0,0.07192]
[1752887144914,0.22278172,117720.0,117710.0,0.29622867]
[1752887145129,0.22278172,117720.0,117710.0,0.002]
[1752887145350,0.22278172,117720.0,117710.0,0.07088]
[1752887147007,0.22278172,117720.0,117710.0,0.29818867]
[1752887148894,0.56278172,117720.0,117710.0,0.22930867]
[1752887149118,0.56278172,117720.0,117710.0,0.29822867]
[1752887150695,0.56278172,117720.0,117710.0,0.22930867]
[1752887150920,0.56278172,117720.0,117710.0,0.29818867]
[1752887152300,0.56278172,117720.0,117710.0,0.22930867]
[1752887152509,0.56278172,117720.0,117710.0,0.29818867]
[1752887153349,0.56278172,117720.0,117710.0,0.07088]
[1752887153558,0.56278172,117720.0,117710.0,0.29818867]
[1752887154330,0.56278172,117720.0,117710.0,0.07088]
[1752887154534,0.56278172,117720.0,117710.0,0.29818867]
[1752887154742,0.37589767,117720.0,117710.0,0.29818867]
[1752887154948,0.04098042,117720.0,117710.0,0.72089191]
[1752887155149,0.01748605,117720.0,117710.0,0.49358324]
[1752887155391,0.01748605,117720.0,117710.0,0.50858324]
[1752887155785,0.00899175,117720.0,117710.0,0.50858324]
[1752887156007,0.00049767,117720.0,117710.0,0.73589191]
[1752887156418,0.00899182,117720.0,117710.0,0.73589191]
[1752887156773,0.01748619,117720.0,117710.0,0.50858324]
[1752887157044,0.00899182,117720.0,117710.0,0.50858324]
[1752887157475,0.00049767,117720.0,117710.0,0.50858324]
[1752887158141,0.00049767,117720.0,117710.0,0.73589191]
[1752887158566,0.00049767,117720.0,117710.0,0.73659191]
[1752887158787,0.00049767,117720.0,117710.0,0.82210219]
[1752887159011,0.00049767,117720.0,117710.0,0.83664304]
[1752887160406,0.00049767,117720.0,117710.0,0.83464304]
[1752887161083,0.00149767,117720.0,117710.0,0.83864304]
[1752887161333,0.00049767,117720.0,117710.0,0.83464304]
[1752887161802,0.00049767,117720.0,117710.0,0.3800257]
[1752887162089,0.00049767,117720.0,117710.0,0.83464304]
[1752887162749,0.00149767,117720.0,117710.0,0.83864304]
[1752887165603,0.00149767,117720.0,117710.0,0.88864303]
[1752887166024,0.00149767,117720.0,117710.0,1.27864303]
[1752887166262,0.02599175,117720.0,117710.0,0.2994457]
[1752887166483,0.0547059,117720.0,117710.0,0.58133352]
[1752887166703,0.07169485,117720.0,117710.0,0.3947544]
[1752887166949,0.23309601,117720.0,117710.0,0.40324978]
[1752887167394,0.22460164,117720.0,117710.0,0.40324978]
[1752887167800,0.22460164,117720.0,117710.0,0.10650111]
[1752887168038,0.22460164,117720.0,117710.0,0.33380978]
[1752887168251,0.22460164,117720.0,117710.0,0.40324978]
[1752887168967,0.22460164,117720.0,117710.0,0.38625895]
[1752887169427,0.22460164,117720.0,117710.0,0.15895028]
[1752887169853,0.22460164,117720.0,117710.0,0.38625895]
[1752887170060,0.22460164,117720.0,117710.0,0.31681895]
[1752887170273,0.22460164,117720.0,117710.0,0.15891028]
[1752887170475,0.22460164,117720.0,117710.0,0.38621895]
[1752887171155,0.22460164,117720.0,117710.0,0.38506274]
[1752887171373,0.22460164,117720.0,117710.0,0.56346721]
[1752887171798,0.22460164,117720.0,117710.0,0.38506274]
[1752887172030,0.21610706,117720.0,117710.0,0.38506274]
[1752887172446,0.21610706,117720.0,117710.0,0.56346714]
[1752887173373,0.21610706,117720.0,117710.0,0.57196237]
[1752887174060,0.06320106,117720.0,117710.0,0.58895247]
[1752887174283,0.07169572,117720.0,117710.0,0.58045753]
[1752887174493,0.24159038,117720.0,117710.0,0.58045753]
[1752887174938,0.25008511,117720.0,117710.0,0.58895262]
[1752887175126,0.2330963,117720.0,117710.0,0.36164395]
[1752887175337,0.2330963,117720.0,117710.0,0.58895262]
[1752887175540,0.2330963,117720.0,117710.0,0.57196237]
[1752887175754,0.22460172,117720.0,117710.0,0.57196266]
[1752887176169,0.22460172,117720.0,117710.0,0.58045775]
[1752887176384,0.22460172,117720.0,117710.0,0.35314922]
[1752887176604,0.22460172,117720.0,117710.0,0.58895305]
[1752887176829,0.22460172,117720.0,117710.0,0.59744814]
[1752887177214,0.22460172,117720.0,117710.0,0.59744771]
[1752887177726,0.05470706,117720.0,117710.0,0.59744771]
[1752887178642,0.05470706,117720.0,117710.0,0.58895269]
[1752887178643,0.22460172,117720.0,117710.0,0.58895269]
[1752887178868,0.22460172,117720.0,117710.0,0.56346721]
[1752887179097,0.22460172,117720.0,117710.0,0.57196252]
[1752887179327,0.22460172,117720.0,117710.0,0.58045775]
[1752887180011,0.22460172,117720.0,117710.0,0.58895291]
[1752887180969,0.06320091,117720.0,117710.0,0.59744785]
[1752887181184,0.05470633,117720.0,117710.0,0.59744785]
[1752887181339,0.06320091,117720.0,117710.0,0.59744785]
[1752887181543,0.07169564,117720.0,117710.0,0.58895291]
[1752887181729,0.07169564,117720.0,117710.0,0.597448]
[1752887181930,0.23309608,117720.0,117710.0,0.58895291]
[1752887184043,0.23309608,117720.0,117710.0,0.30062867]
[1752887184044,0.22460164,117720.0,117710.0,0.30062867]
[1752887184257,0.22460164,117720.0,117710.0,0.30912412]
[1752887184714,0.21610706,117720.0,117710.0,0.30912412]
[1752887184923,0.21610706,117720.0,117710.0,0.08181545]
[1752887185128,0.21610706,117720.0,117710.0,0.30062867]
[1752887185551,0.21610706,117720.0,117710.0,0.23130867]
[1752887185770,0.21610706,117720.0,117710.0,0.07328]
[1752887185989,0.21610706,117720.0,117710.0,0.48748823]
[1752887186206,0.21610706,117720.0,117710.0,0.47899307]
[1752887186451,0.22460157,117720.0,117710.0,0.47899307]
[1752887186660,0.22460157,117720.0,117710.0,0.47049776]
[1752887186867,0.22460157,117720.0,117710.0,0.47899314]
[1752887187079,0.22460157,117720.0,117710.0,0.48748845]
[1752887187327,0.22460157,117720.0,117710.0,0.47899314]
[1752887187528,0.21610706,117720.0,117710.0,0.30058867]
[1752887188685,0.21610706,117720.0,117710.0,0.30908405]
[1752887188898,0.21610706,117720.0,117710.0,0.48748837]
[1752887189106,0.21610706,117720.0,117710.0,0.49598353]
[1752887189325,0.22460157,117720.0,117710.0,0.49598353]
[1752887189766,0.22460157,117720.0,117710.0,0.48748837]
[1752887189991,0.20761233,117720.0,117710.0,0.30058867]
[1752887190825,0.20676286,117720.0,117710.0,0.30908412]
[1752887191270,0.20676286,117720.0,117710.0,0.48748859]
[1752887191918,0.20676286,117720.0,117710.0,0.4959839]
[1752887192144,0.20676286,117720.0,117710.0,0.50447913]
[1752887193095,0.20676286,117720.0,117710.0,0.07328]
[1752887193527,0.20676286,117720.0,117710.0,0.30058867]
[1752887193778,0.20676286,117720.0,117710.0,0.30908412]
[1752887194273,0.20676286,117720.0,117710.0,0.3175795]
[1752887194474,0.20676286,117720.0,117710.0,0.4959839]
[1752887194898,0.20676286,117720.0,117710.0,0.50447913]
[1752887195571,0.20676286,117720.0,117710.0,0.51297429]
[1752887195791,0.06235181,117720.0,117710.0,0.51297386]
[1752887196020,0.06235181,117720.0,117710.0,0.51297342]
[1752887196275,0.0166482,117720.0,117710.0,0.5984837]
[1752887196519,0.0006482,117720.0,117710.0,0.85673322]
[1752887197227,0.0006482,117720.0,117710.0,0.85743322]
[1752887197546,0.0006482,117720.0,117710.0,0.85673322]
[1752887197764,0.0006482,117720.0,117710.0,0.85743322]
[1752887202500,0.0006482,117720.0,117710.0,0.33353588]
[1752887202721,0.06155109,117720.0,117710.0,0.36264016]
[1752887202940,0.06155095,117720.0,117710.0,0.59844377]
[1752887203164,0.0530565,117720.0,117710.0,0.59844377]
[1752887203387,0.0360682,117720.0,117710.0,0.59844377]
[1752887203611,0.05305665,117720.0,117710.0,0.59844377]
[1752887203818,0.0700456,117720.0,117710.0,0.59844377]
[1752887204046,0.0700456,117720.0,117710.0,0.31681895]
[1752887204274,0.0700456,117720.0,117710.0,0.40328978]
[1752887204702,0.07854026,117720.0,117710.0,0.3947944]
[1752887204919,0.2229521,117720.0,117710.0,0.38629895]
[1752887205144,0.2229521,117720.0,117710.0,0.31681895]
[1752887205387,0.2229521,117720.0,117710.0,0.38625895]
[1752887205629,0.2229521,117720.0,117710.0,0.31681895]
[1752887205859,0.2229521,117720.0,117710.0,0.3947544]
[1752887206514,0.2229521,117720.0,117710.0,0.30524412]
[1752887206779,0.2229521,117720.0,117710.0,0.29674867]
[1752887210022,0.2229521,117720.0,117710.0,0.06944]
[1752887210244,0.2229521,117720.0,117710.0,0.29674867]
[1752887210714,0.2229521,117720.0,117710.0,0.22730867]
[1752887210923,0.2229521,117720.0,117710.0,0.29670867]
[1752887211572,0.2229521,117720.0,117700.0,0.23021667]
[1752887211573,0.2096044,117710.0,117700.0,0.23021667]
[1752887211810,0.2115844,117710.0,117700.0,0.29961667]
[1752887212057,0.2145244,117710.0,117700.0,0.072308]
[1752887212696,0.2145244,117710.0,117700.0,0.29961667]
[1752887212917,0.2155244,117710.0,117700.0,0.30061667]
[1752887213834,0.2155244,117710.0,117700.0,0.073308]
[1752887213835,0.22766466,117710.0,117700.0,0.073308]
[1752887214047,0.22766466,117710.0,117700.0,0.30061667]
[1752887214273,0.2155244,117710.0,117700.0,0.30061667]
[1752887214733,0.2155244,117710.0,117700.0,0.073308]
[1752887214936,0.22401963,117710.0,117700.0,0.30061667]
[1752887215361,0.22401963,117710.0,117700.0,0.073308]
[1752887215590,0.22401963,117710.0,117700.0,0.30061667]
[1752887217126,0.22401963,117710.0,117700.0,0.30911284]
[1752887217346,0.22401963,117710.0,117700.0,0.48753247]
[1752887217569,0.22401963,117710.0,117700.0,0.25172756]
[1752887217790,0.22401963,117710.0,117700.0,0.47903623]
[1752887218306,0.2155244,117710.0,117700.0,0.30061667]
[1752887218734,0.2155244,117710.0,117700.0,0.30911284]
[1752887219150,0.2155244,117710.0,117700.0,0.08180417]
[1752887219361,0.20702909,117710.0,117700.0,0.30911284]
[1752887219780,0.20702909,117710.0,117700.0,0.30061667]
[1752887220036,0.20702909,117710.0,117700.0,0.073308]
[1752887220258,0.20702909,117710.0,117700.0,0.30061667]
[1752887220963,0.20702909,117710.0,117700.0,0.073308]
[1752887221199,0.24472147,117710.0,117700.0,0.073348]
[1752887221433,0.31249798,117710.0,117700.0,0.073428]
[1752887221660,0.65249798,117710.0,117700.0,0.073428]
[1752887222381,0.87980665,117710.0,117700.0,0.073428]
[1752887222621,0.87980665,117710.0,117700.0,0.003908]
[1752887222845,0.65249798,117710.0,117700.0,0.003908]
[1752887223078,0.67800898,117710.0,117700.0,0.003908]
[1752887223325,0.76351926,117710.0,117700.0,0.003908]
[1752887224005,0.69574275,117710.0,117700.0,0.003908]
[1752887224234,0.65805037,117710.0,117700.0,0.003908]